fUSD/lending_fUSD_20240912
["ID","MTS","AMOUNT","RATE_DAILY","PERIOD"]
[337874331,1726177839986,-744.0477,0.000129,2]
[337874333,1726177839995,-1000.0,0.000129,2]
[337874335,1726177840005,-946.139,0.000129,2]
[337874337,1726177840014,-176.81501873,0.000129,2]
[337874339,1726177840023,-156.10988812,0.000129,2]
[337874341,1726177840031,-186.08543356,0.000129,2]
[337874342,1726177840040,-580.9046,0.000129,2]
[337874344,1726177840050,-421.35408527,0.000129,2]
[337874346,1726177840059,-1702.2724076,0.000129,2]
[337874348,1726177840068,-1657.0,0.000129,2]
[337874350,1726177840077,-177.68959691,0.000129,2]
[337874352,1726177840085,-13433.43286494,0.00012922,2]
[337874354,1726177840094,-580.90461,0.0001293,2]
[337874356,1726177840103,-153.703,0.00012955,2]
[337874358,1726177840112,-1580.93077399,0.00012958,2]
[337874360,1726177840121,-500.0,0.00012973,2]
[337874362,1726177840130,-439.58526808,0.0001299,2]
[337874363,1726177840139,-152.09,0.0001299,2]
[337874365,1726177840148,-439.58526808,0.0001299,2]
[337874367,1726177840157,-439.58526808,0.0001299,2]
[337874369,1726177840166,-152.09,0.0001299,2]
[337874371,1726177840184,-152.09,0.0001299,2]
[337874373,1726177840194,-152.09,0.0001299,2]
[337874375,1726177840203,-152.09,0.0001299,2]
[337874377,1726177840212,-152.09,0.0001299,2]
[337874379,1726177840221,-152.09,0.0001299,2]
[337874380,1726177840230,-152.09,0.0001299,2]
[337874382,1726177840239,-152.09,0.0001299,2]
[337874384,1726177840248,-152.09,0.0001299,2]
[337874386,1726177840257,-152.09,0.0001299,2]
[337874388,1726177840267,-152.09,0.0001299,2]
[337874390,1726177840276,-152.09,0.0001299,2]
[337874392,1726177840285,-152.09,0.0001299,2]
[337874394,1726177840294,-152.09,0.0001299,2]
[337874396,1726177840303,-152.09,0.0001299,2]
[337874398,1726177840312,-152.09,0.0001299,2]
[337874400,1726177840321,-152.09,0.0001299,2]
[337874402,1726177840330,-152.09,0.0001299,2]
[337874403,1726177840339,-152.09,0.0001299,2]
[337874405,1726177840349,-635.8192311,0.00012998,2]
[337874407,1726177840358,-241.33539938,0.00012999,2]
[337874409,1726177840367,-1171.96516957,0.00012999,2]
[337874411,1726177840377,-820.0,0.00013,2]
[337874413,1726177840386,-257701.37043783,0.00013,2]
[337874415,1726177840395,-1063268.1854912,0.00013,2]
[337874417,1726177840405,-273522.33707482,0.00013,2]
[337874419,1726177840415,-262424.01704975,0.00013,2]
[337874421,1726177840425,-151.0,0.00013,2]
[337874423,1726177840435,-151.0,0.00013,2]
[337874424,1726177840444,-30997.0,0.00013,2]
[337874426,1726177840453,-151.0,0.00013,2]
[337874428,1726177840463,-151.0,0.00013,2]
[337874430,1726177840473,-151.0,0.00013,2]
[337874432,1726177840482,-635.0,0.00013,2]
[337874434,1726177840492,-151.0,0.00013,2]
[337874436,1726177840501,-161.736456,0.00013,2]
[337874438,1726177840510,-151.0,0.00013,2]
[337874440,1726177840520,-151.0,0.00013,2]
[337874442,1726177840529,-151.0,0.00013,2]
[337874444,1726177840538,-151.0,0.00013,2]
[337874446,1726177840547,-151.0,0.00013,2]
[337874448,1726177840557,-151.0,0.00013,2]
[337874450,1726177840567,-151.0,0.00013,2]
[337874452,1726177840576,-151.0,0.00013,2]
[337874454,1726177840585,-151.0,0.00013,2]
[337874456,1726177840595,-189.82046,0.00013,2]
[337874458,1726177840604,-151.0,0.00013,2]
[337874460,1726177840613,-151.0,0.00013,2]
[337874461,1726177840622,-151.0,0.00013,2]
[337874463,1726177840632,-151.0,0.00013,2]
[337874465,1726177840642,-151.0,0.00013,2]
[337874467,1726177840653,-196.93524,0.00013,2]
[337874469,1726177840663,-151.0,0.00013,2]
[337874471,1726177840672,-151.0,0.00013,2]
[337874473,1726177840683,-151.995566,0.00013,2]
[337874475,1726177840692,-280.896209,0.00013,2]
[337874477,1726177840701,-280.896209,0.00013,2]
[337874479,1726177840710,-280.896209,0.00013,2]
[337874481,1726177840719,-280.896209,0.00013,2]
[337874483,1726177840729,-280.896209,0.00013,2]
[337874485,1726177840739,-280.896209,0.00013,2]
[337874487,1726177840747,-280.896209,0.00013,2]
[337874488,1726177840756,-280.896209,0.00013,2]
[337874490,1726177840765,-280.896209,0.00013,2]
[337874492,1726177840774,-280.896209,0.00013,2]
[337874494,1726177840783,-280.896209,0.00013,2]
[337874496,1726177840792,-280.896209,0.00013,2]
[337874498,1726177840801,-151.0,0.00013,2]
[337874500,1726177840811,-151.0,0.00013,2]
[337874502,1726177840820,-151.0,0.00013,2]
[337874504,1726177840829,-170.966444,0.00013,2]
[337874506,1726177840837,-151.0,0.00013,2]
[337874507,1726177840846,-151.0,0.00013,2]
[337874509,1726177840855,-151.185244,0.00013,2]
[337874511,1726177840864,-151.0,0.00013,2]
[337874513,1726177840873,-151.0,0.00013,2]
[337874515,1726177840882,-151.0,0.00013,2]
[337874517,1726177840891,-151.0,0.00013,2]
[337874519,1726177840901,-151.0,0.00013,2]
[337874521,1726177840909,-151.0,0.00013,2]
[337874523,1726177840918,-151.0,0.00013,2]
[337874525,1726177840930,-151.0,0.00013,2]
[337874527,1726177840939,-151.0,0.00013,2]
[337874529,1726177840948,-151.0,0.00013,2]
[337874531,1726177840958,-153.664012,0.00013,2]
[337874533,1726177840967,-151.0,0.00013,2]
[337874535,1726177840976,-151.0,0.00013,2]
[337874537,1726177840985,-151.0,0.00013,2]
[337874539,1726177840994,-151.0,0.00013,2]
[337874541,1726177841003,-151.64361,0.00013,2]
[337874543,1726177841012,-151.0,0.00013,2]
[337874545,1726177841022,-151.0,0.00013,2]
[337874547,1726177841032,-151.0,0.00013,2]
[337874549,1726177841041,-151.0,0.00013,2]
[337874551,1726177841053,-151.0,0.00013,2]
[337874553,1726177841062,-151.0,0.00013,2]
[337874555,1726177841072,-151.0,0.00013,2]
[337874557,1726177841083,-248.170114,0.00013,2]
[337874559,1726177841092,-151.0,0.00013,2]
[337874561,1726177841101,-151.0,0.00013,2]
[337874563,1726177841110,-151.0,0.00013,2]
[337874565,1726177841118,-151.0,0.00013,2]
[337874567,1726177841128,-151.0,0.00013,2]
[337874568,1726177841136,-259.988093,0.00013,2]
[337874570,1726177841145,-151.0,0.00013,2]
[337874572,1726177841154,-151.0,0.00013,2]
[337874574,1726177841163,-151.0,0.00013,2]
[337874576,1726177841173,-151.178423,0.00013,2]
[337874578,1726177841182,-151.0,0.00013,2]
[337874580,1726177841191,-207.241144,0.00013,2]
[337874582,1726177841201,-151.0,0.00013,2]
[337874584,1726177841209,-151.0,0.00013,2]
[337874586,1726177841219,-151.0,0.00013,2]
[337874588,1726177841230,-151.0,0.00013,2]
[337874590,1726177841241,-151.0,0.00013,2]
[337874592,1726177841251,-151.0,0.00013,2]
[337874594,1726177841261,-151.0,0.00013,2]
[337874596,1726177841271,-151.0,0.00013,2]
[337874598,1726177841282,-151.0,0.00013,2]
[337874600,1726177841292,-151.0,0.00013,2]
[337874602,1726177841303,-233.376814,0.00013,2]
[337874604,1726177841312,-151.0,0.00013,2]
[337874606,1726177841323,-216.758492,0.00013,2]
[337874608,1726177841333,-151.0,0.00013,2]
[337874611,1726177841343,-151.187989,0.00013,2]
[337874613,1726177841353,-325.081799,0.00013,2]
[337874615,1726177841363,-325.081799,0.00013,2]
[337874617,1726177841373,-325.081799,0.00013,2]
[337874619,1726177841383,-325.081799,0.00013,2]
[337874621,1726177841393,-325.081799,0.00013,2]
[337874623,1726177841402,-325.081799,0.00013,2]
[337874625,1726177841412,-325.081799,0.00013,2]
[337874626,1726177841423,-325.081799,0.00013,2]
[337874629,1726177841433,-325.081799,0.00013,2]
[337874630,1726177841442,-325.081799,0.00013,2]
[337874633,1726177841452,-325.081799,0.00013,2]
[337874635,1726177841462,-325.081799,0.00013,2]
[337874637,1726177841472,-151.0,0.00013,2]
[337874638,1726177841481,-151.0,0.00013,2]
[337874640,1726177841490,-2050358.92921838,0.00013,2]
[337874641,1726177841499,-151.0,0.00013,2]
[337874642,1726177841509,-151.0,0.00013,2]
[337874643,1726177841518,-151.0,0.00013,2]
[337874644,1726177841527,-151.0,0.00013,2]
[337874645,1726177841536,-151.0,0.00013,2]
[337874646,1726177841545,-199.04613433,0.00013,2]
[337874647,1726177841555,-151.0,0.00013,2]
[337874648,1726177841565,-151.0,0.00013,2]
[337874649,1726177841575,-151.0,0.00013,2]
[337874650,1726177841585,-292.05628,0.00013,2]
[337874651,1726177841595,-151.0,0.00013,2]
[337874652,1726177841606,-151.0,0.00013,2]
[337874653,1726177841615,-151.0,0.00013,2]
[337874654,1726177841625,-151.0,0.00013,2]
[337874655,1726177841634,-151.0,0.00013,2]
[337874656,1726177841645,-151.0,0.00013,2]
[337874657,1726177841659,-151.0,0.00013,2]
[337874659,1726177841669,-151.0,0.00013,2]
[337874684,1726177841909,-151.0,0.00013,2]
[337874686,1726177841918,-151.0,0.00013,2]
[337874688,1726177841928,-152.687557,0.00013,2]
[337874690,1726177841937,-151.0,0.00013,2]
[337874692,1726177841946,-151.0,0.00013,2]
[337874694,1726177841955,-155.978235,0.00013,2]
[337874695,1726177841964,-635.14886,0.00013,2]
[337874697,1726177841973,-635.14886,0.00013,2]
[337874699,1726177841982,-635.14886,0.00013,2]
[337874701,1726177841991,-151.0,0.00013,2]
[337874703,1726177842000,-635.14886,0.00013,2]
[337874705,1726177842009,-151.0,0.00013,2]
[337874707,1726177842018,-635.14886,0.00013,2]
[337874708,1726177842026,-635.14886,0.00013,2]
[337874710,1726177842035,-635.14886,0.00013,2]
[337874712,1726177842044,-635.14886,0.00013,2]
[337874714,1726177842053,-635.14886,0.00013,2]
[337874716,1726177842063,-635.14886,0.00013,2]
[337874718,1726177842072,-635.14886,0.00013,2]
[337874720,1726177842081,-635.14886,0.00013,2]
[337874722,1726177842090,-151.0,0.00013,2]
[337874724,1726177842099,-725.441824,0.00013,2]
[337874726,1726177842109,-725.441824,0.00013,2]
[337874728,1726177842118,-725.441824,0.00013,2]
[337874730,1726177842126,-725.441824,0.00013,2]
[337874732,1726177842136,-725.441824,0.00013,2]
[337874734,1726177842145,-151.0,0.00013,2]
[337874736,1726177842154,-725.441824,0.00013,2]
[337874738,1726177842163,-151.0,0.00013,2]
[337874740,1726177842172,-151.0,0.00013,2]
[337874742,1726177842181,-151.0,0.00013,2]
[337874744,1726177842189,-725.441824,0.00013,2]
[337874746,1726177842198,-725.441824,0.00013,2]
[337874748,1726177842207,-151.0,0.00013,2]
[337874750,1726177842216,-725.441824,0.00013,2]
[337874752,1726177842225,-151.0,0.00013,2]
[337874754,1726177842234,-725.441824,0.00013,2]
[337874756,1726177842243,-151.0,0.00013,2]
[337874758,1726177842252,-151.0,0.00013,2]
[337874760,1726177842261,-725.441824,0.00013,2]
[337874762,1726177842270,-725.441824,0.00013,2]
[337874763,1726177842279,-151.0,0.00013,2]
[337874766,1726177842289,-151.0,0.00013,2]
[337874767,1726177842298,-151.0,0.00013,2]
[337874769,1726177842307,-151.0,0.00013,2]
[337874771,1726177842317,-151.0,0.00013,2]
[337874773,1726177842326,-151.0,0.00013,2]
[337874775,1726177842335,-151.0,0.00013,2]
[337874777,1726177842344,-169.743751,0.00013,2]
[337874779,1726177842353,-151.0,0.00013,2]
[337874781,1726177842362,-151.0,0.00013,2]
[337874783,1726177842371,-151.0,0.00013,2]
[337874785,1726177842380,-151.0,0.00013,2]
[337874787,1726177842390,-151.0,0.00013,2]
[337874789,1726177842400,-154.476145,0.00013,2]
[337874791,1726177842410,-151.065845,0.00013,2]
[337874793,1726177842419,-151.0,0.00013,2]
[337874795,1726177842428,-151.0,0.00013,2]
[337874797,1726177842438,-151.0,0.00013,2]
[337874799,1726177842447,-152.494508,0.00013,2]
[337874801,1726177842456,-151.0,0.00013,2]
[337874803,1726177842466,-151.0,0.00013,2]
[337874805,1726177842475,-151.0,0.00013,2]
[337874807,1726177842484,-151.0,0.00013,2]
[337874809,1726177842494,-1100.0,0.00013,2]
[337874811,1726177842503,-151.0,0.00013,2]
[337874813,1726177842513,-151.0,0.00013,2]
[337874815,1726177842523,-151.0,0.00013,2]
[337874818,1726177842532,-151.0,0.00013,2]
[337874821,1726177842542,-151.0,0.00013,2]
[337874823,1726177842552,-3627.450564,0.00013,2]
[337874825,1726177842562,-3627.450564,0.00013,2]
[337874829,1726177842571,-371.733623,0.00013,2]
[337874832,1726177842581,-371.733623,0.00013,2]
[337874835,1726177842591,-371.733623,0.00013,2]
[337874838,1726177842600,-580.9046,0.00013,2]
[337874840,1726177842609,-580.9046,0.00013,2]
[337874842,1726177842619,-371.733623,0.00013,2]
[337874844,1726177842629,-371.733623,0.00013,2]
[337874847,1726177842639,-371.733623,0.00013,2]
[337874850,1726177842649,-151.97333,0.00013,2]
[337874853,1726177842661,-371.733623,0.00013,2]
[337874857,1726177842671,-371.733623,0.00013,2]
[337874859,1726177842681,-371.733623,0.00013,2]
[337874862,1726177842690,-371.733623,0.00013,2]
[337874865,1726177842700,-371.733623,0.00013,2]
[337874867,1726177842709,-371.733623,0.00013,2]
[337874869,1726177842718,-151.0,0.00013,2]
[337874871,1726177842729,-151.0,0.00013,2]
[337874873,1726177842738,-269.719505,0.00013,2]
[337874875,1726177842748,-269.719505,0.00013,2]
[337874877,1726177842758,-269.719505,0.00013,2]
[337874879,1726177842767,-269.719505,0.00013,2]
[337874881,1726177842777,-269.719505,0.00013,2]
[337874883,1726177842786,-269.719505,0.00013,2]
[337874885,1726177842796,-269.719505,0.00013,2]
[337874887,1726177842805,-269.719505,0.00013,2]
[337874889,1726177842816,-269.719505,0.00013,2]
[337874890,1726177842825,-269.719505,0.00013,2]
[337874892,1726177842835,-269.719505,0.00013,2]
[337874894,1726177842844,-269.719505,0.00013,2]
[337874896,1726177842853,-269.719505,0.00013,2]
[337874898,1726177842863,-269.719505,0.00013,2]
[337874900,1726177842872,-252.220698,0.00013,2]
[337874902,1726177842882,-151.0,0.00013,2]
[337874904,1726177842891,-151.0,0.00013,2]
[337874906,1726177842901,-151.0,0.00013,2]
[337874908,1726177842911,-151.0,0.00013,2]
[337874910,1726177842921,-151.0,0.00013,2]
[337874912,1726177842931,-151.0,0.00013,2]
[337874914,1726177842941,-151.0,0.00013,2]
[337874916,1726177842950,-151.0,0.00013,2]
[337874918,1726177842960,-151.0,0.00013,2]
[337874920,1726177842970,-151.0,0.00013,2]
[337874922,1726177842979,-151.0,0.00013,2]
[337874924,1726177842988,-151.0,0.00013,2]
[337874926,1726177842997,-151.0,0.00013,2]
[337874928,1726177843006,-151.0,0.00013,2]
[337874930,1726177843016,-294.412549,0.00013,2]
[337874932,1726177843025,-294.412549,0.00013,2]
[337874934,1726177843033,-294.412549,0.00013,2]
[337874936,1726177843043,-294.412549,0.00013,2]
[337874938,1726177843052,-294.412549,0.00013,2]
[337874940,1726177843062,-294.412549,0.00013,2]
[337874942,1726177843071,-294.412549,0.00013,2]
[337874944,1726177843081,-294.412549,0.00013,2]
[337874946,1726177843090,-294.412549,0.00013,2]
[337874948,1726177843099,-294.412549,0.00013,2]
[337874950,1726177843109,-294.412549,0.00013,2]
[337874952,1726177843119,-294.412549,0.00013,2]
[337874954,1726177843129,-151.0,0.00013,2]
[337874955,1726177843138,-151.0,0.00013,2]
[337874957,1726177843147,-151.0,0.00013,2]
[337874959,1726177843156,-151.0,0.00013,2]
[337874961,1726177843166,-151.0,0.00013,2]
[337874963,1726177843176,-151.0,0.00013,2]
[337874965,1726177843186,-274.844198,0.00013,2]
[337874967,1726177843195,-151.0,0.00013,2]
[337874969,1726177843205,-151.0,0.00013,2]
[337874971,1726177843215,-151.0,0.00013,2]
[337874973,1726177843224,-151.0,0.00013,2]
[337874976,1726177843234,-151.0,0.00013,2]
[337874978,1726177843243,-151.0,0.00013,2]
[337874980,1726177843252,-151.0,0.00013,2]
[337874982,1726177843261,-151.0,0.00013,2]
[337874984,1726177843270,-151.0,0.00013,2]
[337874985,1726177843280,-151.0,0.00013,2]
[337874987,1726177843289,-151.0,0.00013,2]
[337874989,1726177843299,-151.546684,0.00013,2]
[337874991,1726177843308,-1165.540144,0.00013,2]
[337874993,1726177843317,-1165.540144,0.00013,2]
[337874995,1726177843326,-151.0,0.00013,2]
[337874997,1726177843335,-1165.540144,0.00013,2]
[337874999,1726177843345,-1165.540144,0.00013,2]
[337875001,1726177843354,-158.505026,0.00013,2]
[337875003,1726177843364,-1165.540144,0.00013,2]
[337875005,1726177843374,-1165.540144,0.00013,2]
[337875007,1726177843384,-1165.540144,0.00013,2]
[337875009,1726177843394,-1165.540144,0.00013,2]
[337875011,1726177843403,-1165.540144,0.00013,2]
[337875012,1726177843412,-1165.540144,0.00013,2]
[337875014,1726177843421,-1165.540144,0.00013,2]
[337875016,1726177843443,-1165.540144,0.00013,2]
[337875018,1726177843452,-1165.540144,0.00013,2]
[337875020,1726177843461,-1165.540144,0.00013,2]
[337875022,1726177843471,-151.0,0.00013,2]
[337875024,1726177843481,-151.0,0.00013,2]
[337875026,1726177843491,-151.0,0.00013,2]
[337875028,1726177843500,-151.0,0.00013,2]
[337875030,1726177843510,-151.0,0.00013,2]
[337875032,1726177843520,-214.845802,0.00013,2]
[337875034,1726177843529,-151.0,0.00013,2]
[337875036,1726177843539,-151.0,0.00013,2]
[337875038,1726177843548,-151.0,0.00013,2]
[337875040,1726177843558,-151.0,0.00013,2]
[337875042,1726177843567,-151.0,0.00013,2]
[337875044,1726177843577,-151.0,0.00013,2]
[337875046,1726177843586,-228.090844,0.00013,2]
[337875048,1726177843596,-151.0,0.00013,2]
[337875050,1726177843605,-151.0,0.00013,2]
[337875052,1726177843615,-151.0,0.00013,2]
[337875054,1726177843625,-151.0,0.00013,2]
[337875056,1726177843634,-151.0,0.00013,2]
[337875058,1726177843644,-151.0,0.00013,2]
[337875060,1726177843653,-151.0,0.00013,2]
[337875062,1726177843663,-151.0,0.00013,2]
[337875064,1726177843676,-151.0,0.00013,2]
[337875066,1726177843686,-151.0,0.00013,2]
[337875068,1726177843695,-151.0,0.00013,2]
[337875070,1726177843704,-151.0,0.00013,2]
[337875072,1726177843714,-151.0,0.00013,2]
[337875074,1726177843723,-151.0,0.00013,2]
[337875076,1726177843732,-151.0,0.00013,2]
[337875078,1726177843741,-151.0,0.00013,2]
[337875080,1726177843750,-151.0,0.00013,2]
[337875082,1726177843759,-151.0,0.00013,2]
[337875084,1726177843768,-151.0,0.00013,2]
[337875086,1726177843777,-296.637412,0.00013,2]
[337875088,1726177843786,-250.0,0.00013,2]
[337875090,1726177843796,-250.0,0.00013,2]
[337875092,1726177843805,-151.0,0.00013,2]
[337875094,1726177843815,-151.0,0.00013,2]
[337875096,1726177843824,-151.0,0.00013,2]
[337875098,1726177843834,-151.0,0.00013,2]
[337875100,1726177843843,-151.0,0.00013,2]
[337875102,1726177843853,-151.0,0.00013,2]
[337875104,1726177843862,-1813.0,0.00013,2]
[337875105,1726177843871,-151.0,0.00013,2]
[337875107,1726177843881,-151.0,0.00013,2]
[337875109,1726177843890,-151.0,0.00013,2]
[337875111,1726177843900,-152.09,0.00013004,2]
[337875113,1726177843909,-154611.0,0.00013014,2]
[337875115,1726177843918,-280.896209,0.00013014,2]
[337875117,1726177843930,-280.896209,0.00013014,2]
[337875119,1726177843940,-151.0,0.00013014,2]
[337875121,1726177843949,-151.0,0.00013014,2]
[337875123,1726177843958,-325.081799,0.00013014,2]
[337875125,1726177843968,-325.081799,0.00013014,2]
[337875127,1726177843977,-635.14886,0.00013014,2]
[337875129,1726177843987,-635.14886,0.00013014,2]
[337875130,1726177843997,-725.441824,0.00013014,2]
[337875131,1726177844006,-725.441824,0.00013014,2]
[337875132,1726177844015,-151.0,0.00013014,2]
[337875133,1726177844024,-3627.450564,0.00013014,2]
[337875134,1726177844034,-371.733623,0.00013014,2]
[337875135,1726177844043,-371.733623,0.00013014,2]
[337875136,1726177844052,-269.719505,0.00013014,2]
[337875137,1726177844062,-269.719505,0.00013014,2]
[337875138,1726177844071,-151.0,0.00013014,2]
[337875139,1726177844080,-237.38366,0.00013014,2]
[337875140,1726177844089,-294.412549,0.00013014,2]
[337875141,1726177844099,-294.412549,0.00013014,2]
[337875142,1726177844108,-1165.540144,0.00013014,2]
[337875143,1726177844117,-1165.540144,0.00013014,2]
[337875144,1726177844126,-151.0,0.00013014,2]
[337875145,1726177844135,-237.404658,0.00013014,2]
[337875146,1726177844144,-1813.0,0.00013027,2]
[337875147,1726177844153,-287.66835123,0.00013029,2]
[337875148,1726177844163,-1813.0,0.00013055,2]
[337875149,1726177844174,-1813.0,0.00013082,2]
[337875150,1726177844183,-1813.0,0.0001311,2]
[337875151,1726177844192,-150.0,0.00013114,2]
[337875152,1726177844201,-1813.0,0.00013137,2]
[337875153,1726177844211,-13433.43286494,0.00013143,2]
[337875154,1726177844220,-341.01,0.00013163,2]
[337875155,1726177844229,-1813.0,0.00013164,2]
[337875156,1726177844238,-1813.0,0.00013192,2]
[337875157,1726177844247,-1000.0,0.00013193,2]
[337875158,1726177844257,-150.0,0.00013203,2]
[337875159,1726177844266,-1580.93077399,0.00013215,2]
[337875160,1726177844275,-1813.0,0.00013219,2]
[337875161,1726177844285,-1813.0,0.00013247,2]
[337875162,1726177844294,-1813.0,0.00013274,2]
[337875163,1726177844303,-280.896209,0.000133,2]
[337875164,1726177844313,-280.896209,0.000133,2]
[337875165,1726177844323,-151.0,0.000133,2]
[337875166,1726177844333,-359.0,0.000133,2]
[337875167,1726177844342,-538.8202,0.000133,2]
[337875168,1726177844352,-1000.0,0.000133,2]
[337875169,1726177844363,-1001.9615,0.000133,2]
[337875170,1726177844372,-904.0,0.000133,2]
[337875171,1726177844383,-1813.0,0.00013301,2]
[337875172,1726177844392,-1813.0,0.00013329,2]
[337875173,1726177844402,-1813.0,0.00013356,2]
[337875174,1726177844412,-624.0,0.00013358,2]
[337875175,1726177844421,-448.0,0.00013358,2]
[337875176,1726177844432,-1261.0,0.00013358,2]
[337875177,1726177844441,-1547.0,0.00013358,2]
[337875179,1726177844450,-207.874,0.00013358,2]
[337875181,1726177844459,-931.0,0.00013358,2]
[337875183,1726177844469,-557.0,0.00013358,2]
[337875185,1726177844478,-150.0,0.00013358,2]
[337875187,1726177844487,-810.0,0.00013358,2]
[337875189,1726177844497,-553.0,0.00013358,2]
[337875191,1726177844506,-1983.526,0.00013358,2]
[337875193,1726177844515,-1125.0,0.00013358,2]
[337875195,1726177844524,-248.0,0.00013358,2]
[337875197,1726177844533,-3400.07,0.00013358,2]
[337875199,1726177844543,-1919.0,0.00013358,2]
[337875201,1726177844552,-806.0,0.00013358,2]
[337875203,1726177844562,-5861.0,0.00013358,2]
[337875205,1726177844572,-188.121,0.00013358,2]
[337875207,1726177844581,-9311.0,0.00013358,2]
[337875209,1726177844591,-250.0,0.00013358,2]
[337875210,1726177844599,-1146.0,0.00013358,2]
[337875212,1726177844609,-151.0,0.00013358,2]
[337875214,1726177844619,-325.081799,0.00013358,2]
[337875216,1726177844628,-325.081799,0.00013358,2]
[337875218,1726177844638,-635.14886,0.00013358,2]
[337875220,1726177844648,-635.14886,0.00013358,2]
[337875222,1726177844660,-725.441824,0.00013358,2]
[337875224,1726177844669,-725.441824,0.00013358,2]
[337875226,1726177844680,-151.0,0.00013358,2]
[337875228,1726177844690,-3627.450564,0.00013358,2]
[337875230,1726177844699,-371.733623,0.00013358,2]
[337875232,1726177844708,-371.733623,0.00013358,2]
[337875234,1726177844717,-269.719505,0.00013358,2]
[337875236,1726177844727,-269.719505,0.00013358,2]
[337875238,1726177844736,-151.0,0.00013358,2]
[337875240,1726177844745,-294.412549,0.00013358,2]
[337875242,1726177844754,-294.412549,0.00013358,2]
[337875244,1726177844763,-1165.540144,0.00013358,2]
[337875246,1726177844772,-1165.540144,0.00013358,2]
[337875248,1726177844781,-151.0,0.00013358,2]
[337875250,1726177844790,-13433.43286494,0.00013365,2]
[337875252,1726177844800,-1813.0,0.00013384,2]
[337875253,1726177844809,-694.65065,0.0001339,2]
[337875255,1726177844819,-1813.0,0.00013411,2]
[337875257,1726177844827,-176.81501871,0.00013433,2]
[337875259,1726177844836,-280.896209,0.00013438,2]
[337875261,1726177844846,-280.896209,0.00013438,2]
[337875263,1726177844855,-1813.0,0.00013438,2]
[337875265,1726177844864,-1813.0,0.00013466,2]
[337875267,1726177844873,-1580.93077399,0.00013473,2]
[337875269,1726177844882,-277.04,0.0001349,2]
[337875271,1726177844891,-1813.0,0.00013493,2]
[337875273,1726177844900,-1813.0,0.00013521,2]
[337875275,1726177844909,-150.0,0.00013537,2]
[337875277,1726177844917,-150.237,0.00013537,2]
[337875279,1726177844927,-1813.0,0.00013548,2]
[337875281,1726177844936,-1813.0,0.00013575,2]
[337875283,1726177844945,-151.0,0.00013586,2]